bitfinex/quotes_BTCUSD_20241119
["timestamp","ask_amount","ask_price","bid_price","bid_amount"]
[1732014957598,0.034,91703.0,91702.0,0.0008548]
[1732014958473,0.044,91703.0,91702.0,0.1099028]
[1732014958928,0.046,91703.0,91702.0,0.0008548]
[1732014959364,0.046,91703.0,91702.0,0.1099028]
[1732014960297,0.044,91703.0,91702.0,0.1099028]
[1732014961092,0.034,91703.0,91702.0,0.1099028]
[1732014961611,0.046,91703.0,91702.0,0.1099028]
[1732014962263,0.024,91703.0,91702.0,0.1099028]
[1732014962478,0.024,91703.0,91702.0,0.2329028]
[1732014962680,0.024,91703.0,91702.0,0.1099028]
[1732014963562,0.01,91708.0,91702.0,0.0008548]
[1732014963829,0.01,91708.0,91707.0,0.109042]
[1732014965296,0.013,91708.0,91707.0,0.109042]
[1732014965500,0.0147098,91708.0,91707.0,0.109042]
[1732014966120,0.0197098,91708.0,91707.0,0.110042]
[1732014966580,0.0167098,91708.0,91707.0,0.110042]
[1732014967235,0.0247098,91708.0,91707.0,0.111042]
[1732014968119,0.0147098,91708.0,91707.0,0.111042]
[1732014968327,0.0147098,91708.0,91707.0,0.239442]
[1732014968561,0.0147098,91708.0,91707.0,0.160442]
[1732014968778,0.0147098,91708.0,91707.0,0.111042]
[1732014969897,0.0147098,91708.0,91707.0,0.15573744]
[1732014971068,0.0147098,91708.0,91707.0,0.20413744]
[1732014976046,0.0147098,91708.0,91707.0,0.39649999]
[1732014976724,0.16341916,91724.0,91723.0,0.109023]
[1732014977339,0.01,91726.0,91725.0,0.109021]
[1732014978183,0.002,91730.0,91729.0,0.109016]
[1732014978359,0.012,91730.0,91729.0,0.109016]
[1732014978607,0.01,91727.0,91723.0,0.001]
[1732014978825,0.01,91724.0,91702.0,0.1008548]
[1732014979013,0.01,91721.0,91719.0,0.04320308]
[1732014979319,0.01,91721.0,91719.0,0.109028]
[1732014979535,0.01,91721.0,91716.0,0.109031]
[1732014979740,0.01,91721.0,91718.0,0.109029]
[1732014979955,0.127,91723.0,91708.0,0.19543589]
[1732014979956,0.01,91717.0,91708.0,0.19543589]
[1732014980130,0.01,91717.0,91713.0,0.109035]
[1732014980272,0.01,91717.0,91714.0,0.109033]
[1732014980482,0.01,91717.0,91715.0,0.109032]
[1732014981123,0.011,91717.0,91715.0,0.109032]
[1732014982431,0.011,91717.0,91715.0,0.111032]
[1732014982594,0.014,91717.0,91715.0,0.112032]
[1732014983440,0.014,91717.0,91716.0,0.109032]
[1732014984624,0.013,91717.0,91716.0,0.109032]
[1732014984828,0.014,91717.0,91716.0,0.110032]
[1732014985229,0.014,91717.0,91716.0,0.001]
[1732014985404,0.011,91717.0,91716.0,0.001]
[1732014985589,0.015,91717.0,91716.0,0.002]
[1732014987748,0.015,91717.0,91716.0,0.111032]
[1732014988010,0.015,91717.0,91716.0,0.002]
[1732014988836,0.005,91717.0,91716.0,0.111032]
[1732014989773,0.0067098,91717.0,91716.0,0.111032]
[1732014991183,0.0067098,91717.0,91716.0,0.002]
[1732014992764,0.0067098,91717.0,91716.0,0.111032]
[1732014993691,0.0062724,91717.0,91716.0,0.111032]
[1732014995033,0.0062724,91717.0,91716.0,0.002]
[1732014995908,0.0062724,91717.0,91716.0,0.111032]
[1732014996566,0.0062724,91717.0,91716.0,0.002]
[1732014996786,0.0062724,91717.0,91716.0,0.111032]
[1732014998613,0.0062724,91717.0,91716.0,0.002]
[1732014998836,0.0062724,91717.0,91716.0,0.111032]
[1732014999936,0.0062724,91717.0,91716.0,0.002]
[1732015000199,0.1253034,91717.0,91716.0,0.002]
[1732015000421,0.37286595,91717.0,91716.0,0.002]
[1732015001123,0.38286595,91717.0,91716.0,0.002]
[1732015001343,0.38230335,91717.0,91716.0,0.001]
[1732015001580,0.39630335,91717.0,91716.0,0.001]
[1732015001795,0.39623543,91717.0,91716.0,0.001]
[1732015002012,0.41023543,91717.0,91716.0,0.002]
[1732015002226,0.41023543,91717.0,91716.0,0.001]
[1732015002447,0.25014,91709.0,91708.0,0.0008549]
[1732015002659,0.36920255,91709.0,91708.0,0.0008549]
[1732015003534,0.36720255,91709.0,91708.0,0.0008549]
[1732015004216,0.39120255,91709.0,91708.0,0.0018549]
[1732015004683,0.39320255,91709.0,91708.0,0.0028549]
[1732015004923,0.40920255,91709.0,91708.0,0.0028549]
[1732015011859,0.01,91696.0,91676.0,0.19567854]
[1732015012080,0.0784,91695.0,91689.0,0.15310539]
[1732015012328,0.0784,91695.0,91677.0,0.218155]
[1732015012329,0.296514,91695.0,91677.0,0.218155]
[1732015012563,0.0784,91695.0,91687.0,0.109066]
[1732015012782,0.0784,91695.0,91677.0,0.218155]
[1732015013018,0.109059,91693.0,91685.0,0.218138]
[1732015013458,0.0804,91695.0,91689.0,0.006]
[1732015013676,0.189457,91695.0,91689.0,0.109063]
[1732015014113,0.192457,91695.0,91689.0,0.109063]
[1732015014333,0.0814,91695.0,91689.0,0.109063]
[1732015014569,0.0834,91695.0,91689.0,0.115063]
[1732015015022,0.0844,91695.0,91689.0,0.120063]
[1732015015704,0.109058,91694.0,91689.0,0.011]
[1732015015918,0.193457,91695.0,91689.0,0.011]
[1732015016160,0.109059,91693.0,91689.0,0.011]
[1732015016413,0.109063,91690.0,91689.0,0.011]
[1732015016635,0.131063,91690.0,91689.0,0.011]
[1732015016863,0.179063,91690.0,91689.0,0.011]
[1732015017085,0.255663,91690.0,91689.0,0.011]
[1732015017308,0.1466,91690.0,91682.0,0.04460165]
[1732015017537,0.10907,91684.0,91682.0,0.04460165]
[1732015017793,0.109069,91685.0,91675.0,0.21816]
[1732015018014,0.109069,91685.0,91679.0,0.1099311]
[1732015018254,0.10907,91684.0,91679.0,0.0008551]
[1732015018464,0.109072,91683.0,91675.0,0.10908]
[1732015018675,0.109072,91683.0,91677.0,0.109078]
[1732015018902,0.109072,91683.0,91682.0,0.001]
[1732015019121,0.119071,91683.0,91682.0,0.001]
[1732015019972,0.109075,91680.0,91679.0,0.001]
[1732015020456,0.109075,91680.0,91672.0,0.109084]
[1732015020457,0.01,91683.0,91677.0,0.109078]
[1732015020679,0.109073,91682.0,91679.0,0.005]
[1732015020890,0.011,91683.0,91679.0,0.005]
[1732015021106,0.011,91683.0,91675.0,0.218159]
[1732015021336,0.01,91683.0,91678.0,0.109076]
[1732015021552,0.002,91680.0,91679.0,0.007]
[1732015021762,0.001,91680.0,91679.0,0.111076]
[1732015021982,0.109073,91682.0,91679.0,0.005]
[1732015022199,0.109074,91681.0,91679.0,0.005]
[1732015022415,0.012,91683.0,91679.0,0.005]
[1732015022632,0.012,91683.0,91679.0,0.223152]
[1732015022836,0.012,91683.0,91679.0,0.005]
[1732015023048,0.121071,91683.0,91679.0,0.005]
[1732015023636,0.109073,91682.0,91679.0,0.005]
[1732015023856,0.109073,91682.0,91676.0,0.08090592]
[1732015024062,0.109073,91682.0,91678.0,0.006]
[1732015024264,0.012,91683.0,91678.0,0.006]
[1732015024466,0.001,91682.0,91679.0,0.002]
[1732015024666,0.002,91682.0,91679.0,0.007]
[1732015024893,0.001,91682.0,91679.0,0.005]
[1732015025164,0.01,91683.0,91678.0,0.109076]
[1732015025165,0.0117104,91683.0,91678.0,0.112076]
[1732015025368,0.003,91682.0,91678.0,0.118076]
[1732015025565,0.001,91682.0,91678.0,0.112076]
[1732015025777,0.0117104,91683.0,91678.0,0.109076]
[1732015026007,0.002,91682.0,91679.0,0.007]
[1732015026465,0.002,91682.0,91679.0,0.116075]
[1732015026692,0.002,91682.0,91679.0,0.007]
[1732015027134,0.001,91682.0,91679.0,0.002]
[1732015027352,0.002,91682.0,91678.0,0.115076]
[1732015027587,0.01,91681.0,91678.0,0.009]
[1732015027857,0.0828,91680.0,91678.0,0.003]
[1732015028068,0.191875,91680.0,91679.0,0.005]
[1732015028533,0.191875,91680.0,91679.0,0.007]
[1732015028760,0.191875,91680.0,91679.0,0.002]
[1732015028993,0.191875,91680.0,91674.0,0.109081]
[1732015029211,0.0838,91680.0,91679.0,0.002]
[1732015030787,0.0828,91680.0,91678.0,0.115076]
[1732015030996,0.0828,91680.0,91678.0,0.109076]
[1732015031214,0.0838,91680.0,91678.0,0.109076]
[1732015031443,0.0848,91680.0,91679.0,0.005]
[1732015031923,0.0828,91680.0,91678.0,0.109076]
[1732015032126,0.0828,91680.0,91675.0,0.08090592]
[1732015032339,0.0858,91680.0,91678.0,0.118077]
[1732015032840,0.0838,91680.0,91678.0,0.112077]
[1732015033077,0.0838,91680.0,91679.0,0.00129758]
[1732015033493,0.0838,91680.0,91679.0,0.11037358]
[1732015033934,0.001,91680.0,91679.0,0.00129758]
[1732015034672,0.169375,91680.0,91679.0,0.00129758]
[1732015034886,0.250575,91680.0,91679.0,0.00129758]
[1732015035123,0.250575,91680.0,91678.0,0.003]
[1732015035124,0.1415,91680.0,91678.0,0.003]
[1732015035340,0.23813855,91679.0,91678.0,0.003]
[1732015035769,0.23813855,91679.0,91670.0,0.0008552]
[1732015035770,0.109084,91673.0,91670.0,0.0008552]
[1732015035983,0.228156,91678.0,91670.0,0.0008552]
[1732015036188,0.109079,91676.0,91675.0,0.006]
[1732015036673,0.01,91678.0,91670.0,0.0449517]
[1732015037097,0.109082,91674.0,91670.0,0.0509517]
[1732015037333,0.109082,91674.0,91670.0,0.0449517]
[1732015037575,0.218157,91677.0,91670.0,0.0449517]
[1732015037576,0.002,91673.0,91671.0,0.00131633]
[1732015038216,0.004,91673.0,91671.0,0.00131633]
[1732015038444,0.109084,91672.0,91671.0,0.00131633]
[1732015038891,0.002,91673.0,91671.0,0.00131633]
[1732015039114,0.003,91673.0,91671.0,0.00231633]
[1732015039363,0.004,91673.0,91671.0,0.00731633]
[1732015039579,0.002,91673.0,91671.0,0.00131633]
[1732015039785,0.109084,91672.0,91671.0,0.00631633]
[1732015039999,0.111084,91672.0,91671.0,0.005]
[1732015040231,0.110084,91672.0,91671.0,0.001]
[1732015040482,0.120084,91672.0,91671.0,0.005]
[1732015040695,0.196584,91672.0,91671.0,0.005]
[1732015041120,0.195584,91672.0,91671.0,0.004]
[1732015041586,0.245284,91672.0,91671.0,0.005]
[1732015041776,0.245284,91672.0,91671.0,0.001]
[1732015042013,0.119085,91671.0,91670.0,0.0008552]
[1732015043328,0.120085,91671.0,91670.0,0.0058552]
[1732015044404,0.121085,91671.0,91670.0,0.0078552]
[1732015047643,0.012,91671.0,91670.0,0.0078552]
[1732015048148,0.012,91671.0,91670.0,0.00918541]
[1732015048584,0.121085,91671.0,91670.0,0.00918541]
[1732015049032,0.121085,91671.0,91670.0,0.0078552]
[1732015050398,0.131085,91671.0,91670.0,0.0078552]
[1732015050659,0.24014755,91671.0,91670.0,0.0078552]
[1732015050916,0.24214755,91671.0,91670.0,0.0078552]
[1732015051127,0.24014755,91671.0,91670.0,0.0078552]
[1732015052202,0.24214755,91671.0,91670.0,0.0078552]
[1732015053282,0.37044755,91671.0,91670.0,0.0078552]
[1732015060006,0.37044755,91671.0,91670.0,0.0058552]
[1732015060007,0.36944755,91671.0,91670.0,0.0058552]
[1732015060224,0.37944755,91671.0,91670.0,0.0058552]
[1732015060465,0.39044755,91671.0,91670.0,0.0068552]
[1732015060682,0.38944755,91671.0,91670.0,0.0018552]
[1732015060914,0.37844755,91671.0,91670.0,0.0008552]
[1732015061149,0.40944755,91671.0,91670.0,0.0028552]
[1732015061380,0.39544755,91671.0,91670.0,0.0018552]
[1732015061605,0.42244755,91671.0,91670.0,0.0018552]
[1732015061836,0.01,91648.0,91643.0,0.08090592]
[1732015062075,0.01,91648.0,91647.0,0.16341916]
[1732015062364,0.01,91648.0,91644.0,0.00134183]
[1732015062573,0.01,91648.0,91644.0,0.109117]
[1732015062785,0.01,91648.0,91645.0,0.00134183]
[1732015063237,0.01,91648.0,91645.0,0.11045683]
[1732015063494,0.129115,91646.0,91645.0,0.00134183]
[1732015063712,0.129115,91646.0,91627.0,0.218273]
[1732015063713,0.022,91646.0,91644.0,0.001]
[1732015063935,0.119116,91645.0,91644.0,0.001]
[1732015064161,0.01,91645.0,91632.0,0.109132]
[1732015064381,0.01,91645.0,91632.0,0.218264]
[1732015064607,0.109118,91644.0,91633.0,0.11049843]
[1732015064826,0.01,91640.0,91634.0,0.109129]
[1732015065288,0.01,91640.0,91632.0,0.218264]
[1732015065529,0.01,91640.0,91636.0,0.109126]
[1732015065747,0.01,91640.0,91635.0,0.00136853]
[1732015065954,0.01,91640.0,91633.0,0.11313]
[1732015066173,0.01,91640.0,91636.0,0.00136853]
[1732015066408,0.01,91641.0,91633.0,0.004]
[1732015066641,0.012,91640.0,91637.0,0.00136853]
[1732015066851,0.012,91640.0,91633.0,0.11313]
[1732015067075,0.01,91640.0,91638.0,0.00136853]
[1732015067309,0.01,91640.0,91639.0,0.109123]
[1732015067521,0.014,91640.0,91639.0,0.00137308]
[1732015067728,0.011,91640.0,91637.0,0.19003192]
[1732015067938,0.011,91640.0,91639.0,0.00137308]
[1732015068162,0.014,91640.0,91637.0,0.19003192]
[1732015068377,0.014,91640.0,91639.0,0.00137308]
[1732015068643,0.015,91640.0,91639.0,0.004]
[1732015068855,0.015,91640.0,91639.0,0.00537308]
[1732015069074,0.016,91640.0,91639.0,0.00537308]
[1732015069521,0.005,91640.0,91639.0,0.11449608]
[1732015069753,0.005,91640.0,91639.0,0.19609608]
[1732015070251,0.005,91640.0,91639.0,0.20009608]
[1732015070479,0.006,91640.0,91639.0,0.20009608]
[1732015070951,0.006,91640.0,91639.0,0.33215863]
[1732015071394,0.006,91640.0,91639.0,0.38185863]
[1732015071650,0.006,91640.0,91639.0,0.48185863]
[1732015071869,0.16341916,91655.0,91654.0,0.109105]
[1732015072098,0.16341916,91655.0,91649.0,0.08090592]
[1732015072332,0.16341916,91655.0,91650.0,0.10911]
[1732015072551,0.16341916,91655.0,91650.0,0.11049181]
[1732015072771,0.1271,91657.0,91650.0,0.11049181]
[1732015073465,0.1271,91657.0,91651.0,0.218219]
[1732015073750,0.119109,91651.0,91650.0,0.00438181]
[1732015073928,0.01,91651.0,91650.0,0.003]
[1732015074588,0.119109,91651.0,91650.0,0.003]
[1732015074797,0.01,91651.0,91650.0,0.003]
[1732015075034,0.01,91651.0,91646.0,0.04341314]
[1732015075245,0.129109,91651.0,91650.0,0.001]
[1732015075471,0.146109,91651.0,91650.0,0.002]
[1732015075690,0.146109,91651.0,91650.0,0.001]
[1732015075691,0.38007155,91651.0,91650.0,0.001]
[1732015076140,0.39107155,91651.0,91650.0,0.002]
[1732015079086,0.38907155,91651.0,91650.0,0.002]
[1732015079509,0.39107155,91651.0,91650.0,0.002]
[1732015079720,0.38907155,91651.0,91650.0,0.002]
[1732015080142,0.1146,91651.0,91650.0,0.002]
[1732015080354,0.048,91651.0,91650.0,0.002]
[1732015081465,0.048,91651.0,91650.0,0.00337986]
[1732015081979,0.048,91651.0,91650.0,0.002]
[1732015082442,0.048,91651.0,91650.0,0.04680186]
[1732015082908,0.028,91651.0,91650.0,0.11248986]
[1732015083137,0.029711,91651.0,91650.0,0.00337986]
[1732015084025,0.029711,91651.0,91650.0,0.15764294]
[1732015084290,0.029711,91651.0,91650.0,0.11248986]
[1732015084533,0.029711,91651.0,91650.0,0.00337986]
[1732015084758,0.029711,91651.0,91650.0,0.11248986]
[1732015085190,0.029711,91651.0,91650.0,0.00337986]
[1732015085860,0.029711,91651.0,91650.0,0.002]
[1732015086535,0.14882,91651.0,91650.0,0.002]
[1732015086753,0.28622,91651.0,91650.0,0.002]
[1732015086990,0.39728255,91651.0,91650.0,0.002]
[1732015088338,0.52071422,91651.0,91650.0,0.002]
[1732015088561,0.52071422,91651.0,91650.0,0.001]
[1732015088562,0.54071422,91651.0,91650.0,0.001]
[1732015088778,0.52971422,91651.0,91650.0,0.001]
[1732015089000,0.54771422,91651.0,91650.0,0.002]
[1732015089216,0.131129,91634.0,91633.0,0.0008552]
[1732015089466,0.36759155,91634.0,91633.0,0.0008552]
[1732015090817,0.37759155,91634.0,91633.0,0.0008552]
[1732015095548,0.43159155,91634.0,91633.0,0.0008552]
[1732015095772,0.59501071,91634.0,91633.0,0.0008552]
[1732015095997,0.44159155,91634.0,91633.0,0.0008552]
[1732015096227,0.81407326,91634.0,91633.0,0.0008552]
[1732015096447,0.6506541,91634.0,91633.0,0.0008552]
[1732015097388,0.6236541,91634.0,91633.0,0.0008552]
[1732015097609,0.6548944,91634.0,91633.0,0.0008552]
[1732015097843,0.6818944,91634.0,91633.0,0.0008552]
[1732015098285,0.6818944,91634.0,91631.0,0.0004]
[1732015098286,0.251132,91632.0,91631.0,0.0004]
[1732015098513,0.48649455,91632.0,91631.0,0.0004]
[1732015099398,0.48849455,91632.0,91631.0,0.0004]
[1732015099872,0.51349455,91632.0,91631.0,0.0004]
[1732015101259,0.51349455,91632.0,91631.0,1e-06]
[1732015101260,0.6225571,91632.0,91631.0,1e-06]
[1732015101741,0.5955571,91632.0,91631.0,1e-06]
[1732015102173,0.15115,91617.0,91616.0,0.0008549]
[1732015102383,0.32881255,91617.0,91616.0,0.0008549]
[1732015102606,0.31881255,91617.0,91616.0,0.0008549]
[1732015102825,0.32881255,91617.0,91616.0,0.0008549]
[1732015103728,0.31881255,91617.0,91616.0,0.0008549]
[1732015104617,0.34581255,91617.0,91616.0,0.0008549]
[1732015104886,0.37281255,91617.0,91616.0,0.0008549]
[1732015109388,0.002,91603.0,91586.0,0.12343167]
[1732015109609,0.01,91599.0,91593.0,0.16341916]
[1732015109824,0.01,91599.0,91594.0,0.0494]
[1732015110063,0.01,91601.0,91594.0,0.0494]
[1732015111384,0.017,91599.0,91594.0,0.0494]
[1732015111618,0.01,91601.0,91595.0,0.00133251]
[1732015111823,0.042,91601.0,91595.0,0.00133251]
[1732015112058,0.042,91601.0,91594.0,0.0494]
[1732015112512,0.029,91601.0,91594.0,0.0494]
[1732015112976,0.138169,91601.0,91594.0,0.0494]
[1732015113184,0.01,91601.0,91594.0,0.0494]
[1732015114061,0.013,91599.0,91594.0,0.0494]
[1732015114340,0.140169,91601.0,91585.0,0.0499]
[1732015114545,0.140169,91601.0,91595.0,0.00133251]
[1732015114771,0.132169,91601.0,91585.0,0.0499]
[1732015115000,0.042,91601.0,91596.0,0.00133251]
[1732015115209,0.01,91601.0,91585.0,0.0499]
[1732015115543,0.013,91601.0,91585.0,0.0499]
[1732015115758,0.013,91601.0,91586.0,0.00133251]
[1732015115949,0.013,91601.0,91580.0,0.12343167]
[1732015116190,0.036,91601.0,91587.0,0.00133251]
[1732015116403,0.036,91601.0,91581.0,0.13206255]
[1732015116649,0.026,91601.0,91589.0,0.023]
[1732015116894,0.026,91601.0,91591.0,0.12343167]
[1732015117121,0.023,91601.0,91591.0,0.12343167]
[1732015117593,0.038,91601.0,91592.0,0.00133251]
[1732015118029,0.023,91601.0,91592.0,0.00133251]
[1732015118460,0.01,91601.0,91592.0,0.00133251]
[1732015118649,0.012,91601.0,91592.0,0.00133251]
[1732015118899,0.16341916,91606.0,91592.0,0.00133251]
[1732015119382,0.0177106,91601.0,91592.0,0.00133251]
[1732015120264,0.01,91596.0,91592.0,0.00133251]
[1732015120540,0.01,91596.0,91578.0,0.0383]
[1732015121441,0.130175,91596.0,91586.0,0.04437768]
[1732015121910,0.145175,91596.0,91586.0,0.04437768]
[1732015122343,0.01,91596.0,91586.0,0.04437768]
[1732015122565,0.011,91596.0,91586.0,0.04537768]
[1732015122777,0.120175,91596.0,91586.0,0.04537768]
[1732015122993,0.109176,91595.0,91586.0,0.04537768]
[1732015123443,0.111177,91594.0,91586.0,0.04537768]
[1732015124071,0.002,91594.0,91586.0,0.04537768]
[1732015124307,0.111178,91594.0,91586.0,0.04437768]
[1732015124534,0.002,91594.0,91586.0,0.04537768]
[1732015124767,0.002,91594.0,91586.0,0.04637768]
[1732015125004,0.111177,91594.0,91586.0,0.04437768]
[1732015125241,0.111177,91594.0,91586.0,0.04637768]
[1732015125242,0.01,91591.0,91586.0,0.04637768]
[1732015125456,0.100715,91587.0,91586.0,0.0028553]
[1732015126092,0.01,91588.0,91586.0,0.0028553]
[1732015126307,0.109185,91587.0,91586.0,0.0028553]
[1732015126734,0.109185,91587.0,91586.0,0.0008553]
[1732015127192,0.114185,91587.0,91586.0,0.0018553]
[1732015127413,0.124185,91587.0,91586.0,0.0018553]
[1732015128306,0.129185,91587.0,91586.0,0.0018553]
[1732015129203,0.01,91559.0,91558.0,0.05674616]
[1732015130519,0.01,91561.0,91558.0,0.05674616]
[1732015130743,0.002,91559.0,91558.0,0.05974616]
[1732015130956,0.01,91564.0,91558.0,0.05674616]
[1732015131174,0.002,91559.0,91558.0,0.05806283]
[1732015131401,0.014,91559.0,91558.0,0.05806283]
[1732015131613,0.01,91564.0,91558.0,0.05806283]
[1732015131802,0.012,91561.0,91558.0,0.05674616]
[1732015132090,0.012,91561.0,91559.0,0.00131667]
[1732015132511,0.012,91561.0,91558.0,0.05674616]
[1732015132722,0.012,91561.0,91560.0,0.00131667]
[1732015132944,0.012,91561.0,91558.0,0.05674616]
[1732015132945,0.009,91559.0,91558.0,0.05674616]
[1732015133394,0.011,91559.0,91558.0,0.05674616]
[1732015133606,0.16341916,91566.0,91558.0,0.05674616]
[1732015133818,0.16341916,91566.0,91559.0,0.218438]
[1732015133819,0.009,91561.0,91559.0,0.218438]
[1732015134018,0.024,91561.0,91560.0,0.109217]
[1732015134223,0.16341916,91566.0,91563.0,0.109213]
[1732015134431,0.16341916,91566.0,91564.0,0.109212]
[1732015134667,0.01,91570.0,91559.0,0.109219]
[1732015134885,0.17341916,91577.0,91569.0,0.109206]
[1732015135135,0.013,91561.0,91560.0,0.109217]
[1732015136237,0.011,91561.0,91559.0,0.12343167]
[1732015136453,0.011,91561.0,91560.0,0.24127955]
[1732015136667,0.011,91561.0,91560.0,0.34127955]
[1732015136892,0.16341916,91577.0,91576.0,0.109198]
[1732015137534,0.01,91587.0,91571.0,0.12343167]
[1732015137736,0.01,91590.0,91588.0,0.109184]
[1732015138403,0.01,91590.0,91589.0,0.109183]
[1732015140060,0.022,91590.0,91589.0,0.109183]
[1732015140290,0.01,91587.0,91581.0,0.109192]
[1732015140502,0.01,91587.0,91564.0,0.36790806]
[1732015140503,0.01,91586.0,91579.0,0.109194]
[1732015140714,0.01,91571.0,91570.0,0.109206]
[1732015140936,0.0801,91573.0,91564.0,0.04472891]
[1732015141141,0.0801,91573.0,91572.0,0.109203]
[1732015141826,0.0798,91581.0,91580.0,0.109194]
[1732015143176,0.002,91586.0,91573.0,0.218403]
[1732015143410,0.002,91586.0,91585.0,0.109188]
[1732015143621,0.0455,91587.0,91583.0,0.218378]
[1732015143851,0.0455,91587.0,91586.0,0.109186]
[1732015144057,0.0455,91587.0,91584.0,0.218378]
[1732015144058,0.0798,91588.0,91587.0,0.109185]
[1732015144737,0.01,91592.0,91587.0,0.109185]
[1732015144967,0.0017106,91594.0,91593.0,0.109178]
[1732015146511,0.0027106,91594.0,91593.0,0.109178]
[1732015146729,0.0017106,91594.0,91593.0,0.109178]
[1732015146938,0.0027106,91594.0,91593.0,0.109178]
[1732015147164,0.0047106,91594.0,91593.0,0.109178]
[1732015147382,0.0017106,91594.0,91593.0,0.15502128]
[1732015147583,0.0047106,91594.0,91593.0,0.15502128]
[1732015147716,0.0067106,91594.0,91593.0,0.15502128]
[1732015152073,0.1424106,91594.0,91593.0,0.00131835]
[1732015152275,0.1424106,91594.0,91593.0,0.11049635]
[1732015152504,0.01,91589.0,91588.0,0.109184]
[1732015153331,0.1344106,91594.0,91593.0,0.109178]
[1732015153332,0.1444106,91594.0,91593.0,0.109178]
[1732015153562,0.1334106,91594.0,91593.0,0.109178]
[1732015153781,0.0877106,91594.0,91593.0,0.109178]
[1732015154000,0.0817106,91594.0,91593.0,0.109178]
[1732015155525,0.0877106,91594.0,91593.0,0.109178]
[1732015156004,0.0137106,91594.0,91593.0,0.109178]
[1732015156203,0.0017106,91594.0,91593.0,0.34124055]
[1732015156424,0.0017106,91594.0,91593.0,0.3859812]
[1732015156425,0.0057106,91594.0,91593.0,0.3859812]
[1732015156645,0.0077106,91594.0,91593.0,0.3859812]
[1732015156855,0.0017106,91594.0,91593.0,0.3859812]
[1732015157080,0.0037106,91594.0,91593.0,0.3859812]
[1732015158420,0.0057106,91594.0,91593.0,0.3859812]
[1732015158745,0.0037106,91594.0,91593.0,0.3859812]
[1732015158842,0.0017106,91594.0,91593.0,0.3859812]
[1732015159068,0.0077106,91594.0,91593.0,0.3859812]
[1732015159300,6e-07,91594.0,91593.0,0.50941287]
[1732015159518,0.0030006,91594.0,91593.0,0.50941287]
[1732015160422,0.0030006,91594.0,91593.0,0.75375106]
[1732015161527,0.0030006,91594.0,91593.0,0.50941287]
[1732015161767,0.0030006,91594.0,91593.0,0.75375106]
[1732015162391,0.0030006,91594.0,91593.0,0.50941287]
[1732015164955,6e-07,91594.0,91593.0,0.50941287]
[1732015165199,0.16341916,91606.0,91605.0,0.232164]
[1732015165433,0.16341916,91606.0,91605.0,0.46465822]
[1732015165847,0.0785,91622.0,91606.0,0.123]
[1732015166025,0.0785,91622.0,91615.0,0.109152]
[1732015166537,0.0785,91622.0,91621.0,0.109145]
[1732015168901,0.0895,91622.0,91621.0,0.111145]
[1732015170651,0.0895,91622.0,91621.0,0.25474758]
[1732015174659,0.011,91622.0,91621.0,0.25474758]
[1732015177823,0.011,91622.0,91621.0,0.38681013]
[1732015178316,0.0127106,91622.0,91621.0,0.38681013]
[1732015179191,0.0077106,91622.0,91621.0,0.38581013]
[1732015179419,0.0097106,91622.0,91621.0,0.25874758]
[1732015179871,0.0037106,91622.0,91621.0,0.25774758]
[1732015180075,0.0047106,91622.0,91621.0,0.25974758]
[1732015180539,0.0037106,91622.0,91621.0,0.25774758]
[1732015180762,0.0017106,91622.0,91621.0,0.25274758]
[1732015180968,0.0067106,91622.0,91621.0,0.26174758]
[1732015181175,0.0037106,91622.0,91621.0,0.25574758]
[1732015181625,0.0067106,91622.0,91621.0,0.26274758]
[1732015182264,0.0067106,91622.0,91621.0,0.39481013]
[1732015193774,0.0893106,91622.0,91621.0,0.39481013]
[1732015193986,0.0067106,91622.0,91621.0,0.39481013]
[1732015197573,0.1366106,91622.0,91621.0,0.39481013]
[1732015198386,0.1366106,91622.0,91621.0,0.63900896]
[1732015199464,0.1366106,91622.0,91621.0,0.39481013]
[1732015201619,0.0873106,91622.0,91621.0,0.39481013]
[1732015201826,0.0067106,91622.0,91621.0,0.39481013]
[1732015202044,6e-07,91622.0,91621.0,0.39481013]
[1732015202951,0.049959,91631.0,91630.0,0.47899734]
[1732015203171,0.049959,91631.0,91630.0,0.70926427]
[1732015203395,0.049959,91631.0,91630.0,0.46462822]
[1732015203631,1e-06,91631.0,91630.0,0.46462822]
[1732015204062,1e-06,91631.0,91630.0,0.43453409]
[1732015204294,1e-06,91631.0,91630.0,0.31610242]
[1732015204504,0.075,91654.0,91649.0,0.132111]
[1732015205155,0.075,91654.0,91649.0,0.25554267]
[1732015205365,0.075,91654.0,91649.0,0.23254267]
[1732015206183,0.075,91654.0,91649.0,0.33254267]
[1732015206603,0.075,91654.0,91649.0,0.46460522]
[1732015206824,0.0037094,91650.0,91649.0,0.47960522]
[1732015207252,0.0017094,91650.0,91649.0,0.46460522]
[1732015207472,0.0037094,91650.0,91649.0,0.49260522]
[1732015207675,0.0047094,91650.0,91649.0,0.50560522]
[1732015208060,0.0037094,91650.0,91649.0,0.49260522]
[1732015208265,0.0037094,91650.0,91649.0,0.50760522]
[1732015208421,0.0057094,91650.0,91649.0,0.38417355]
[1732015211129,0.0057094,91650.0,91649.0,0.42747025]
[1732015214675,0.0763,91663.0,91649.0,0.42747025]
[1732015214900,0.0763,91663.0,91662.0,0.35552767]
[1732015215351,0.078,91670.0,91669.0,0.1]
[1732015215576,0.078,91670.0,91669.0,0.35551967]
[1732015215990,0.078,91670.0,91669.0,0.46458222]
[1732015217099,0.079,91670.0,91669.0,0.46458222]
[1732015217321,0.079,91670.0,91669.0,0.50948267]
[1732015219331,0.0017104,91671.0,91669.0,0.50948267]
[1732015219332,4e-07,91671.0,91669.0,0.50948267]